[Event "USA Championship 2022"]
[Site "Saint Louis"]
[Date "2022.10.11"]
[Round "6.2"]
[White "Moradiabadi, Elshan"]
[Black "Caruana, Fabiano"]
[Result "0-1"]
[ECO "B46"]
[WhiteElo "2534"]
[BlackElo "2763"]
[Annotator "TA"]
[PlyCount "88"]
[EventDate "2022.09.05"]
[EventType "tourn"]
[EventCountry "USA"]
[SourceTitle "playchess.com"]
[Source "ChessBase"]
[SourceQuality "1"]
[TimeControl "40/5400+30:1800+30"]

{[%evp 12,88,24,25,20,22,32,13,27,0,0,0,0,0,4,-6,-13,-10,0,0,0,0,0,-16,0,-74,-22,-19,-10,-79,-86,-79,-80,-146,-141,-202,-190,-181,-144,-152,-144,-152,-113,-110,-110,-137,-101,-111,-68,-135,-150,-284,-278,-292,-298,-310,-301,-290,-302,-298,-297,-288,-286,-277,-270,-298,-308,-337,-345,-355,-346,-612,-593,-645,-649,-639,-635,-697,-639]} 1. e4 {[%emt 0:00:02]} c5 {[%emt 0:00:05]} 2. Nf3 {[%emt 0:00:04]} e6 {[%emt 0:00:03]} 3. d4 {[%emt 0:00:03]} cxd4 {[%emt 0:00:04]} 4. Nxd4 {[%emt 0:00:02]} Nc6 {[%emt 0:00:06]} 5. Nc3 {[%emt 0:00:03]} a6 {[%emt 0:00:04]} 6. Bf4 {[%emt 0:02:53]} d6 {[%emt 0:01:09]} 7. Bg3 {[%emt 0:00:09]} Be7 {[%emt 0:09:38] B46: Sicilian: Taimanov: 5 Nc3 a6.} 8. Be2 {[%emt 0:06:16]} Bd7 {[%emt 0:10:55]} 9. Nb3 {[%emt 0:06:17] [#]} e5 $146 {[%emt 0:08:35] The position is equal.} ({Predecessor:} 9... Qc7 10. Qd2 Rd8 11. O-O-O Bc8 12. Kb1 Nf6 13. Rhe1 O-O 14. Qe3 b5 15. a3 Ne5 {0-1 (50) Prraneeth,V (2457)-Puranik,A (2612) Biel 2022}) 10. Bg4 {[%emt 0:09:00]} Bxg4 {[%emt 0:07:51]} 11. Qxg4 {[%emt 0:00:04]} h5 {[%emt 0:00:08]} 12. Qh3 {[%emt 0:00:11]} (12. Qxg7 $2 Bf6 13. Bh4 Bxg7 $19) 12... h4 {[%emt 0:04:32]} 13. f3 {[%emt 0:01:04]} Bg5 {[%emt 0:00:24]} 14. O-O {[%emt 0:06:03]} Rh6 $36 {[%emt 0:07:06][%mdl 2048] Black is pushing.} 15. Bf2 {[%emt 0:01:01]} Nf6 {[%emt 0:00:09]} 16. Rad1 {[%emt 0:04:57]} Qc7 {[%emt 0:00:38]} 17. Nc1 {[%emt 0:12:24]} Kf8 {[%emt 0:06:46]} 18. a3 {[%emt 0:11:51] [#]} (18. Nd3 $11) 18... Na5 {[%emt 0:09:05]} (18... Nd8 $1 $17) 19. Nd3 $11 {[%emt 0:13:46][%cal Of3f4]} Nc4 {[%emt 0:00:44]} 20. Nb4 {[%emt 0:09:04]} (20. Rfe1 $11 {keeps the balance.}) 20... Qc8 {[%emt 0:07:42]} (20... Nxb2 {with more complications.} 21. Nbd5 Nxd5 22. Nxd5 Qc8) 21. Qxc8+ {[%emt 0:07:08]} Rxc8 {[%emt 0:00:04]} 22. Na4 {[%emt 0:00:41]} ({Only move:} 22. Nbd5) 22... a5 $17 {[%emt 0:06:43]} 23. Na2 {[%emt 0:03:29]} (23. Nd3 $17 {was called for.}) 23... Ne3 {[%emt 0:02:18]} 24. N2c3 {[%emt 0:00:03]} Nxd1 {[%emt 0:01:50]} (24... Nxf1 25. Kxf1 Rc6 26. Nb6 $17) 25. Rxd1 {[%emt 0:00:01]} Rc6 {[%emt 0:03:19]} 26. Kf1 {[%emt 0:00:05]} Bf4 {[%emt 0:03:34]} 27. h3 {[%emt 0:00:37]} Kg8 {[%emt 0:00:24]} 28. Bb6 {[%emt 0:01:14]} Rg6 {[%emt 0:01:37]} 29. Bxa5 {[%emt 0:01:33]} Be3 {[%emt 0:01:10] Against Nb6} 30. Rd3 {[%emt 0:02:07]} (30. Bd8 $1 $15) 30... Bd4 {[%emt 0:00:05] Black is more active.} 31. Bd8 {[%emt 0:00:03]} (31. b3 $17 {is a better defense.}) 31... b5 $19 {[%emt 0:01:25]} 32. Bxf6 {[%emt 0:01:34]} gxf6 {[%emt 0:00:43]} (32... Rxf6 33. Nd5 (33. Nxb5 $2 Rxc2 34. Nac3 Bxc3 $19) 33... Rxc2 34. Nxf6+ gxf6 35. Nc3 Rf2+ 36. Ke1 Rxb2 37. Ne2 $17) 33. Nd5 {[%emt 0:00:04] And now Ne7+ would win.} (33. Nxb5 Rxc2 34. Nxd4 exd4 35. Rxd4 Rgxg2 $19) 33... Rxc2 {[%emt 0:00:46]} 34. Ne7+ {[%emt 0:00:04]} Kh7 {[%emt 0:00:14]} 35. Nxg6 {[%emt 0:00:04]} Kxg6 {[%emt 0:00:15][%mdl 4096] Endgame KRB-KRN} ({But not} 35... fxg6 $2 36. Nc3 Rxb2 37. Nd1 $19) 36. Nc3 {[%emt 0:00:02]} Rf2+ {[%emt 0:01:27]} ({Don't blunder} 36... Rxb2 $2 37. Nd1 Rb1 38. Ke2 $19) 37. Ke1 {[%emt 0:00:01][%cal Od3d4] Rxd4! is the strong threat.} Rxb2 {[%emt 0:00:07]} 38. Nd5 {[%emt 0:04:18]} Bc5 {[%emt 0:02:06]} ({Weaker is} 38... Rxg2 {[#]} 39. Rxd4 $1 Rg3 40. Rd3 $14) 39. f4 {[%emt 0:00:59]} Rxg2 {[%emt 0:03:07]} 40. Ne7+ {[%emt 0:00:28]} Kh5 {[%emt 0:01:51] Threatens to win with ...Rg3.} 41. fxe5 $2 {[%emt 0:30:11]} (41. Nf5) 41... fxe5 {[%emt 0:03:44] Black is clearly winning.} 42. Rf3 {[%emt 0:00:00]} Rg3 {[%emt 0:00:55]} 43. Rf5+ {[%emt 0:00:00]} Kh6 {[%emt 0:01:33]} 44. Rf6+ {[%emt 0:00:00]} Kg7 {[%emt 0:00:25] Weighted Error Value: White=0.30/Black=0.09 (flawless)} 0-1

[Event "USA Championship 2022"]
[Site "Saint Louis"]
[Date "2022.10.11"]
[Round "6.3"]
[White "Lenderman, Aleksandr"]
[Black "Shankland, Sam"]
[Result "1/2-1/2"]
[ECO "E08"]
[WhiteElo "2535"]
[BlackElo "2712"]
[Annotator "TA"]
[PlyCount "60"]
[EventDate "2022.09.05"]
[EventType "tourn"]
[EventCountry "USA"]
[SourceTitle "playchess.com"]
[Source "ChessBase"]
[SourceQuality "1"]
[TimeControl "40/5400+30:1800+30"]

{[%evp 17,60,0,27,34,27,23,22,0,10,8,44,33,38,46,45,34,44,10,27,22,29,11,14,22,21,0,0,0,0,0,2,16,3,12,10,1,0,0,0,0,0,0,0,0,0]} 1. d4 {[%emt 0:00:01]} d5 {[%emt 0:00:14]} 2. c4 {[%emt 0:00:13]} e6 {[%emt 0:00:05]} 3. Nf3 {[%emt 0:00:06]} Nf6 {[%emt 0:00:06]} 4. g3 {[%emt 0:00:02]} Bb4+ {[%emt 0:00:09]} 5. Bd2 {[%emt 0:00:05]} Be7 {[%emt 0:00:06]} 6. Bg2 {[%emt 0:00:07]} O-O {[%emt 0:00:07]} 7. O-O {[%emt 0:00:07]} c6 {[%emt 0:00:10]} 8. Qc2 {[%emt 0:00:07]} Nbd7 {[%emt 0:00:07] now supersedes 8...b6.} 9. Bf4 {[%emt 0:00:10]} a5 {[%emt 0:00:44]} 10. Rd1 {[%emt 0:02:40] E08: Closed Catalan: Main Line: 7 Qc2.} h6 {[%emt 0:00:30]} 11. Ne5 {[%emt 0:08:57]} Qb6 {[%emt 0:00:45] [#]} 12. Be3 $146 {[%emt 0:05:16]} ({Predecessor:} 12. Nc3 Nxe5 13. Na4 Qa7 14. dxe5 Nd7 15. cxd5 cxd5 16. Be3 Qb8 17. f4 b5 18. Nc5 {½-½ (42) Filip,L (2438)-Vallejo Pons,F (2698) Skopje 2019}) 12... Qa6 {[%emt 0:08:44]} 13. Nd2 {[%emt 0:16:35]} b5 {[%emt 0:17:14]} (13... Nxe5 {is more complex.} 14. dxe5 Ng4 15. Bd4 c5) 14. Nxd7 {[%emt 0:05:17]} Bxd7 {[%emt 0:01:36]} 15. c5 {[%emt 0:00:18]} Be8 {[%emt 0:07:52]} 16. Bf4 {[%emt 0:01:26]} Qa7 {[%emt 0:06:33]} 17. e4 {[%emt 0:06:57]} g5 {[%emt 0:03:22]} 18. Be5 {[%emt 0:01:38]} Ng4 {[%emt 0:06:41]} 19. Nf3 {[%emt 0:01:27]} Nxe5 {[%emt 0:01:21] The position is equal.} 20. Nxe5 {[%emt 0:00:12]} f6 {[%emt 0:00:38]} 21. Nxc6 {[%emt 0:12:51]} Bxc6 {[%emt 0:00:05]} 22. exd5 {[%emt 0:00:04]} Bxd5 {[%emt 0:01:38]} 23. Qg6+ {[%emt 0:00:28]} Kh8 {[%emt 0:00:04]} 24. Qxh6+ {[%emt 0:00:19]} Kg8 {[%emt 0:00:02]} 25. Qg6+ {[%emt 0:00:12]} Kh8 {[%emt 0:00:01]} 26. Bxd5 {[%emt 0:01:38]} exd5 {[%emt 0:00:02]} 27. Qh6+ {[%emt 0:04:40]} Kg8 {[%emt 0:00:17]} 28. Qg6+ {[%emt 0:00:16]} Kh8 {[%emt 0:00:04]} 29. Qh6+ {[%emt 0:09:26]} Kg8 {[%emt 0:00:08]} 30. Qg6+ {[%emt 0:00:25]} Kh8 {[%emt 0:00:29] Weighted Error Value: White=0.06 (flawless) /Black=0.06 (flawless)} 1/2-1/2

[Event "USA Championship 2022"]
[Site "Saint Louis"]
[Date "2022.10.11"]
[Round "6.4"]
[White "Niemann, Hans Moke"]
[Black "Robson, Ray"]
[Result "0-1"]
[ECO "A50"]
[WhiteElo "2699"]
[BlackElo "2690"]
[Annotator "TA"]
[PlyCount "70"]
[EventDate "2022.09.05"]
[EventType "tourn"]
[EventCountry "USA"]
[SourceTitle "playchess.com"]
[Source "ChessBase"]
[SourceQuality "1"]
[TimeControl "40/5400+30:1800+30"]

{[%evp 9,70,0,0,-18,-28,-40,10,10,15,11,13,9,12,13,15,26,15,8,21,8,12,3,13,4,20,9,2,0,0,0,0,-17,-11,-15,0,-57,-62,-56,-58,-43,-43,-144,-69,-206,-183,-278,-264,-482,-483,-467,-450,-600,-600,-592,-567,-603,-581,-12841,-12840,-12841,-12841,-12841,-12841]} 1. d4 {[%emt 0:04:14]} Nf6 {[%emt 0:00:18]} 2. c4 {[%emt 0:01:21]} e6 {[%emt 0:00:17]} 3. Bf4 {[%emt 0:00:06]} d5 {[%emt 0:05:28]} 4. cxd5 {[%emt 0:00:13]} Nxd5 {[%emt 0:00:53]} 5. Bg3 {[%emt 0:00:08]} c5 {[%emt 0:01:57]} 6. e4 {[%emt 0:00:07] A50: Queen's Fianchetto Defence (1 d4 Nf6 2 c4 b6).} Nf6 {[%emt 0:02:01][%csl LRd4,LRe4]} 7. Nd2 {[%emt 0:00:19]} Nc6 {[%emt 0:12:24] [#]} (7... Qxd4 $15 8. Ngf3 Qd8) 8. dxc5 $146 {[%emt 0:00:09] The position is equal.} ({Predecessor:} 8. e5 Nd7 9. Ngf3 cxd4 10. Bc4 Be7 11. O-O O-O 12. Rc1 Nc5 13. a3 a5 14. Nb3 {1-0 (55) Carlsen,M (2847)-So,W (2772) chess24.com INT 2021}) 8... Bxc5 {[%emt 0:01:04]} 9. e5 {[%emt 0:00:17]} Nd5 {[%emt 0:09:26]} 10. Ngf3 {[%emt 0:00:09]} O-O {[%emt 0:03:03]} 11. a3 {[%emt 0:00:43]} b6 {[%emt 0:05:54]} 12. Ne4 {[%emt 0:05:55]} a5 {[%emt 0:14:04]} 13. Rc1 {[%emt 0:13:28]} Nce7 {[%emt 0:03:09]} 14. Bd3 {[%emt 0:07:33]} Ba6 {[%emt 0:02:14]} 15. Bxa6 {[%emt 0:04:23]} Rxa6 {[%emt 0:00:07]} 16. O-O {[%emt 0:00:28]} Qa8 {[%emt 0:10:26]} 17. Re1 {[%emt 0:08:12] Prevents Ne3.} Nf5 {[%emt 0:02:03]} 18. Nh4 {[%emt 0:04:11]} Nxg3 {[%emt 0:09:23]} 19. hxg3 {[%emt 0:00:28]} Be7 {[%emt 0:01:19]} 20. Qh5 {[%emt 0:00:58]} b5 {[%emt 0:02:13]} 21. Nf3 {[%emt 0:11:19]} Rc6 {[%emt 0:00:18]} 22. Rcd1 {[%emt 0:02:13]} (22. Nd4 $11 Rxc1 23. Rxc1) 22... Rc2 $15 {[%emt 0:01:08]} 23. b3 {[%emt 0:02:44]} (23. Nfg5 h6 24. Nh3 Rxb2 $17) 23... Ra2 {[%emt 0:01:01]} 24. Nd4 {[%emt 0:03:21]} (24. Nfg5 h6 25. Nf3 Rxa3 $17) 24... Rxa3 {[%emt 0:00:24]} 25. f4 {[%emt 0:00:26]} (25. Qg4 $15 Qc8 26. Nd6 Bxd6 27. exd6) 25... Ra2 {[%emt 0:02:14]} (25... Bb4 $17 26. Re2 (26. Nxb5 $2 Rxb3 27. Re2 a4 $19) 26... a4) 26. f5 {[%emt 0:00:57] This costs White the game.} ({White should try} 26. Nxb5 $15 Qa6 27. Nd4) 26... Nc3 $1 $19 {[%emt 0:05:21]} 27. f6 {[%emt 0:01:08]} (27. Qf3 {was necessary.} Nxd1 28. Rxd1) 27... Bxf6 $1 {[%emt 0:00:22] Chess con chili.} ({Much less strong is} 27... Nxe4 28. fxe7 Re8 29. Qf3 $18) (27... Nxd1 {is a self mate.} 28. Qg5 (28. fxe7 Re8 $16) 28... g6 29. Qh6) 28. Nxf6+ {[%emt 0:08:45]} (28. exf6 Nxe4 29. fxg7) 28... gxf6 {[%emt 0:00:01][%csl Ga2][%cal Ra8g2] Black is clearly winning.} 29. Nf3 {[%emt 0:00:10]} Nxd1 {[%emt 0:00:23]} 30. exf6 {[%emt 0:02:41] [#] Intending Qg5+ and mate.} Kh8 $1 {[%emt 0:00:16] Threatens to win with ...Qa7+.} 31. Rxd1 {[%emt 0:00:18] [#] Rd4 is the strong threat.} Rg8 $1 {[%emt 0:02:39]} 32. Kh2 {[%emt 0:00:47]} Qe4 {[%emt 0:00:46][%cal Oa2g2] ( -> ...Rxg2+!)} 33. Rd7 {[%emt 0:00:58]} Qe2 {[%emt 0:00:37][%csl Ga2][%cal Re2g2]} 34. Qh3 {[%emt 0:00:29]} Qxf3 $1 {[%emt 0:00:08]} 35. Rxf7 {[%emt 0:00:02] [#]} Rxg2+ $3 {[%emt 0:00:22] Weighted Error Value: White=0.57/Black=0.05 (flawless)} 0-1

[Event "USA Championship 2022"]
[Site "Saint Louis"]
[Date "2022.10.11"]
[Round "6.5"]
[White "Sevian, Samuel"]
[Black "Xiong, Jeffery"]
[Result "1/2-1/2"]
[ECO "D41"]
[WhiteElo "2684"]
[BlackElo "2690"]
[Annotator "TA"]
[PlyCount "73"]
[EventDate "2022.09.05"]
[EventType "tourn"]
[EventCountry "USA"]
[SourceTitle "playchess.com"]
[Source "ChessBase"]
[SourceQuality "1"]
[TimeControl "40/5400+30:1800+30"]

{[%evp 11,73,27,18,26,29,-2,27,27,30,17,16,16,56,37,43,20,25,25,21,18,24,18,17,26,22,15,38,0,11,0,35,21,61,-30,-35,-26,-34,-39,-39,-31,-26,-58,-51,-58,-56,-51,-50,-45,0,0,0,0,0,0,0,0,0,0,0,0,0,0,0,0]} 1. d4 {[%emt 0:00:01]} Nf6 {[%emt 0:04:46]} 2. Nf3 {[%emt 0:00:18]} d5 {[%emt 0:00:43]} 3. c4 {[%emt 0:00:30]} e6 {[%emt 0:00:31][%cal Be7e6,Be6d5,Bd5e4][%mdl 32]} 4. Nc3 {[%emt 0:00:24]} c5 {[%emt 0:00:24]} 5. cxd5 {[%emt 0:00:20]} cxd4 {[%emt 0:00:29]} 6. Qxd4 {[%emt 0:01:00]} exd5 {[%emt 0:00:10]} 7. e4 {[%emt 0:02:02] D41: Queen's Gambit Declined: Semi-Tarrasch with 5 cxd5.} dxe4 $1 {[%emt 0:00:31][%mdl 4] outshines the older 7...Nc6.} 8. Qxd8+ {[%emt 0:00:07]} Kxd8 {[%emt 0:00:05]} 9. Ng5 {[%emt 0:00:10][%csl LRe4,LRf7] White has an edge.} Be6 {[%emt 0:00:09]} 10. a3 {[%emt 0:00:25] Inhibits Bb4.} Nbd7 {[%emt 0:09:17]} 11. Bf4 {[%emt 0:01:32]} Bb3 {[%emt 0:24:38]} 12. Ngxe4 {[%emt 0:04:24] [#]} Rc8 $146 {[%emt 0:08:18]} ({Predecessor:} 12... Nxe4 13. Nxe4 Nc5 14. Nd2 Ba4 15. Bc4 Be7 16. b3 Bd7 17. O-O Rc8 18. Bg3 Ke8 {½-½ (31) Urkedal,F (2563)-Carlsson,L (2396) Kvisla 2021}) 13. Nxf6 {[%emt 0:04:38]} Nxf6 {[%emt 0:00:33]} 14. Be2 {[%emt 0:02:27]} Bc5 $1 {[%emt 0:07:29]} 15. O-O {[%emt 0:08:31]} Re8 $1 {[%emt 0:00:03]} 16. Bf3 {[%emt 0:29:25]} Re7 {[%emt 0:00:03]} 17. Rfe1 {[%emt 0:02:35]} Rd7 {[%emt 0:00:11]} 18. Be5 {[%emt 0:00:56]} Be7 {[%emt 0:04:42]} 19. Re3 {[%emt 0:05:14]} Be6 {[%emt 0:04:14]} 20. Rae1 {[%emt 0:08:05]} a6 {[%emt 0:08:16]} (20... Bc5 $5 {[%cal Rc5e3]}) 21. h3 {[%emt 0:10:33]} Bd6 {[%emt 0:01:34]} (21... Bc5 {seems wilder.} 22. R3e2 b5 23. Rd1 b4) 22. Bxb7 {[%emt 0:05:51]} Rxc3 $1 $11 {[%emt 0:01:58]} 23. Rxc3 {[%emt 0:02:05]} Bxe5 {[%emt 0:00:05]} 24. Rxe5 {[%emt 0:00:52]} Rxb7 {[%emt 0:00:03]} 25. b4 {[%emt 0:00:23]} Rb5 {[%emt 0:06:03]} 26. Re1 {[%emt 0:00:43]} a5 {[%emt 0:03:27]} 27. Rd1+ {[%emt 0:00:06]} Nd5 {[%emt 0:00:31]} 28. bxa5 {[%emt 0:01:37]} Rxa5 {[%emt 0:00:02]} 29. Rc4 {[%emt 0:00:40]} Rxa3 {[%emt 0:02:53]} 30. Rc5 {[%emt 0:00:05] The position is equal.} Ke7 {[%emt 0:00:20]} 31. Rcxd5 {[%emt 0:00:04]} Bxd5 {[%emt 0:00:05]} 32. Rxd5 {[%emt 0:00:05] KR-KR} Ra1+ {[%emt 0:00:04]} 33. Kh2 {[%emt 0:00:05]} Ra2 {[%emt 0:00:03]} 34. Kg1 {[%emt 0:00:02]} Ra1+ {[%emt 0:00:04]} 35. Kh2 {[%emt 0:00:03]} Ra2 {[%emt 0:00:04]} 36. Kg1 {[%emt 0:00:02]} Ra1+ {[%emt 0:00:04]} 37. Kh2 {[%emt 0:00:32] Weighted Error Value: White=0.10 (very precise) /Black=0.08 (flawless)} 1/2-1/2

[Event "USA Championship 2022"]
[Site "Saint Louis"]
[Date "2022.10.11"]
[Round "6.6"]
[White "Aronian, Levon"]
[Black "Swiercz, Dariusz"]
[Result "0-1"]
[ECO "A11"]
[WhiteElo "2755"]
[BlackElo "2652"]
[Annotator "TA"]
[PlyCount "146"]
[EventDate "2022.09.05"]
[EventType "tourn"]
[EventCountry "USA"]
[SourceTitle "playchess.com"]
[Source "ChessBase"]
[SourceQuality "1"]
[TimeControl "40/5400+30:1800+30"]

{[%evp 11,146,0,0,0,0,-4,0,0,8,12,0,3,8,0,0,0,0,-80,0,0,0,0,0,0,0,0,0,0,0,0,0,0,0,0,0,0,17,-256,-41,-259,-228,-595,-577,-575,-583,-545,-572,-548,-541,-524,-371,-545,-546,-533,-518,-475,-189,-208,0,-444,-222,-215,-120,-188,0,-227,-209,-209,-220,-218,-223,-222,-191,-184,-178,-359,-341,-448,-444,-413,-418,-742,-245,-645,-628,-954,-916,-821,-764,-947,-936,-929,-916,-922,-912,-880,-880,-743,-736,-2411,-2313,-29983,-2051,-2505,-1176,-2747,-2253,-2914,-979,-1277,-1214,-29979,-29980,-29980,-29981,-29981,-29982,-29982,-29983,-29983,-29984,-29981,-29982,-29989,-29990,-29990,-29991,-29993,-29994,-29995,-29990,-29992,-29989,-29990,-29991,-29991,-29990]} 1. c4 {[%emt 0:00:05]} e6 {[%emt 0:00:50]} 2. Nf3 {[%emt 0:01:17]} d5 {[%emt 0:01:10]} 3. e3 {[%emt 0:00:08]} Nf6 {[%emt 0:00:31]} 4. Nc3 {[%emt 0:00:06]} c6 {[%emt 0:01:23]} 5. b3 {[%emt 0:02:08]} Bd6 {[%emt 0:00:20]} 6. Bb2 {[%emt 0:00:07]} O-O {[%emt 0:05:35]} 7. Rc1 {[%emt 0:00:38] A11: English Opening: 1...c6.} Nbd7 {[%emt 0:02:43] [#]} 8. h3 $146 {[%emt 0:10:56]} ({Predecessor:} 8. g3 a6 9. Bg2 e5 10. O-O e4 11. Ne1 Ne5 12. f4 exf3 13. Nxf3 Nd3 14. Ba1 Nxc1 15. Qxc1 {0-1 (46) Flores,D (2599)-Shankland,S (2683) Chess.com INT 2020}) 8... dxc4 {[%emt 0:44:39]} 9. Bxc4 {[%emt 0:00:44] The position is equal.} b5 {[%emt 0:00:23]} 10. Bd3 {[%emt 0:05:46]} Bb7 {[%emt 0:00:41]} 11. Ne4 {[%emt 0:04:45]} Be7 {[%emt 0:00:20]} 12. h4 {[%emt 0:10:13]} h6 {[%emt 0:02:14]} 13. Nfg5 {[%emt 0:16:46]} c5 {[%emt 0:10:15]} (13... hxg5 $2 14. hxg5 g6 15. gxf6 Bxf6 16. Nxf6+ Qxf6 17. Bxf6 $18) 14. Qf3 {[%emt 0:11:01]} (14. Qc2 $11 {remains equal.}) 14... Nxe4 {[%emt 0:01:03]} (14... hxg5 15. hxg5 Bxe4 16. Qh3 $18) (14... Rb8 $17 15. Bb1 Qa5) 15. Bxe4 $11 {[%emt 0:06:34]} Bxe4 {[%emt 0:00:05]} 16. Qxe4 {[%emt 0:00:47][%csl Gg5][%cal Re4h7]} Bxg5 {[%emt 0:00:36]} 17. hxg5 {[%emt 0:00:04]} Qxg5 {[%emt 0:00:05][%cal Oc5c4]} 18. Rh3 {[%emt 0:01:06]} e5 {[%emt 0:11:49]} 19. Rg3 {[%emt 0:00:37]} Qh5 {[%emt 0:02:06]} 20. Qc6 {[%emt 0:01:44]} Rad8 {[%emt 0:01:06]} 21. Qxb5 {[%emt 0:00:18]} Nf6 {[%emt 0:00:14]} 22. Qc6 {[%emt 0:01:12] Inhibits Ne4. And now Qxf6 would win.} Nd5 {[%emt 0:05:30]} (22... Qh1+ 23. Ke2 Qh5+ 24. Qf3 $16) 23. Qxc5 {[%emt 0:04:37]} Rfe8 {[%emt 0:00:22][%cal Od5f4]} 24. Rc4 {[%emt 0:09:27][%mdl 8192] Against Nf4} (24. Qc4 $11) 24... Qh1+ $19 {[%emt 0:02:43]} 25. Ke2 {[%emt 0:00:02]} Qb1 $1 {[%emt 0:00:04][%csl LRa2,LRb2]} (25... Nf6 26. f3 (26. Rc1 $2 Qh5+ 27. Rf3 Rxd2+ 28. Kxd2 Ne4+ 29. Ke2 Nxc5 $19) 26... Rd5 27. Qxa7 $17 (27. Rc1 $2 Qh2 $19)) 26. Qa3 {[%emt 0:01:57] [#]} (26. Bc1 {is tougher.}) 26... Nf4+ $1 {[%emt 0:03:22][%mdl 512]} 27. Rxf4 {[%emt 0:00:07][%cal Oa3a5]} Qd3+ $1 {[%emt 0:00:02]} 28. Kf3 {[%emt 0:00:08][%cal Oa3c5]} Qd5+ {[%emt 0:01:31]} ({Weaker is} 28... Qxd2 29. Rxg7+ Kxg7 30. Qxa7 Qd5+ 31. Kg3 $15) 29. Re4 {[%emt 0:02:50]} f5 {[%emt 0:00:01][%cal Bf7f5,Bf5f4][%mdl 96] Pin} 30. Bc3 {[%emt 0:00:12]} Qxe4+ {[%emt 0:00:52]} 31. Ke2 {[%emt 0:00:01]} f4 {[%emt 0:00:44]} 32. Rf3 {[%emt 0:00:01]} Qd3+ {[%emt 0:00:46]} 33. Ke1 {[%emt 0:00:01]} Qb1+ $2 {[%emt 0:01:23]} (33... g5 34. Rh3 g4) 34. Ke2 {[%emt 0:00:00]} Qd3+ $2 {[%emt 0:00:04]} (34... Qf5 {aiming for ...g5.} 35. Qa6 Kh7) 35. Ke1 {[%emt 0:00:01]} Rd7 {[%emt 0:00:04]} ({Don't go for} 35... Qb1+ $2 36. Ke2 $19) (35... g5 $142 36. Rh3 g4) 36. Qa4 {[%emt 0:01:30]} Qb1+ {[%emt 0:01:32]} 37. Ke2 {[%emt 0:00:01]} Qd3+ {[%emt 0:00:05]} 38. Ke1 {[%emt 0:01:28]} Kh7 {[%emt 0:01:43]} 39. Qc4 {[%emt 0:01:30]} Qxc4 {[%emt 0:00:29] Chess con chili.} 40. bxc4 {[%emt 0:00:01][%mdl 4096] Endgame KRR-KRB} g5 {[%emt 0:00:21]} 41. Rh3 {[%emt 0:31:41]} Rc7 {[%emt 0:07:32]} 42. d3 {[%emt 0:00:00]} Rc6 {[%emt 0:00:03] Threatens to win with ...Ra6.} 43. exf4 $2 {[%emt 0:00:00]} (43. a4) 43... exf4+ {[%emt 0:00:20]} 44. Kd1 {[%emt 0:00:00]} Ra6 {[%emt 0:06:13]} 45. d4 {[%emt 0:00:00]} Rxa2 {[%emt 0:00:05]} 46. c5 {[%emt 0:00:00]} (46. Bd2 $142 Ra4 47. Rc3) 46... Rb8 $2 {[%emt 0:10:32]} (46... Rxf2 47. Bd2 Rxg2) 47. Kc1 $2 {[%emt 0:00:00]} (47. Bd2 Kg6 48. d5) 47... Rxf2 {[%emt 0:04:56] White must now prevent ...g4.} 48. d5 {[%emt 0:00:00]} g4 {[%emt 0:00:10]} 49. Rh1 {[%emt 0:00:00]} g3 {[%emt 0:02:23]} 50. c6 {[%emt 0:00:00]} f3 {[%emt 0:00:39]} ({Inferior is} 50... Rxg2 51. c7 Rc8 52. d6 $11) 51. c7 {[%emt 0:00:00]} Rc8 {[%emt 0:01:15]} 52. d6 {[%emt 0:00:00]} fxg2 {[%emt 0:00:03]} 53. Rd1 {[%emt 0:00:00]} Rf1 {[%emt 0:00:44]} 54. Bd4 {[%emt 0:00:00]} h5 {[%emt 0:02:12][%cal Bh6h5,Bh5h4][%mdl 32] ...h4 is the strong threat.} 55. Kc2 {[%emt 0:00:00]} h4 {[%emt 0:00:29] ( -> ...h3)} 56. Bc5 {[%emt 0:00:00]} Rf5 {[%emt 0:00:01]} (56... h3 $142 57. Rd5 {[#]} Rf2+ $1 {[%mdl 512]} 58. Kb3 g1=Q 59. Rd4 Qb1+ 60. Ka4 Ra2+ 61. Ba3 Rxa3+ $1 {[%mdl 512]} 62. Kxa3 Qa1+ 63. Kb3 Qxd4 64. d7 Rxc7 65. d8=Q Rc3+ 66. Ka2 Qa4+ 67. Kb2 Qc2+ 68. Ka1 Ra3#) 57. Bxa7 {[%emt 0:00:11]} Kg6 {[%emt 0:00:58]} (57... h3 $142 58. Kb3 Rb5+ 59. Kc4 Rb7) 58. Bb6 {[%emt 0:00:00]} Rf7 {[%emt 0:00:07] Strongly threatening ...h3.} 59. Rd2 {[%emt 0:00:00]} Kf5 {[%emt 0:00:57]} (59... h3 $142 60. Bg1 Kf5 61. Rd5+ Ke6) 60. Rxg2 {[%emt 0:00:00]} Ke6 {[%emt 0:00:25]} 61. Bc5 {[%emt 0:00:00] [#]} Rfxc7 $1 {[%emt 0:00:34][%mdl 512] Black mates.} 62. dxc7 {[%emt 0:00:00]} Rxc7 {[%emt 0:00:01]} 63. Kd3 {[%emt 0:00:00]} Rxc5 {[%emt 0:00:04] KR-KR} 64. Ke4 {[%emt 0:00:00]} Rc4+ {[%emt 0:01:14]} 65. Kf3 {[%emt 0:00:00]} Kf5 {[%emt 0:00:02]} 66. Ra2 {[%emt 0:00:00]} Rf4+ {[%emt 0:00:06]} 67. Kg2 {[%emt 0:00:00]} Kg4 {[%emt 0:00:03]} 68. Kh1 {[%emt 0:00:00]} Rd4 {[%emt 0:00:33]} 69. Ra1 {[%emt 0:00:00]} h3 {[%emt 0:00:24]} 70. Rb1 {[%emt 0:00:00]} Kf3 {[%emt 0:01:21]} 71. Rb3+ {[%emt 0:00:00]} Kf2 {[%emt 0:01:12][%cal Rd4d1]} 72. Rb2+ {[%emt 0:00:00]} Ke3 {[%emt 0:00:06][%cal Rd4d1]} 73. Rb1 {[%emt 0:00:00]} Ke2 {[%emt 0:00:11] Weighted Error Value: White=0.64/Black=0.48} 0-1